bitfinex-derivatives/quotes_SOLF0:USTF0_20250421
["timestamp","ask_amount","ask_price","bid_price","bid_amount"]
[1745256950527,0.04945835,134.9,134.87,33.28]
[1745256950727,368.9616,134.96,134.87,33.28]
[1745256950929,27.56183411,134.99,134.88,30.30281718]
[1745256951127,2.7706772,134.98,134.88,30.30281718]
[1745256951327,2.77136445,134.98,134.88,30.30281718]
[1745256951527,27.56183411,134.99,134.88,30.30281718]
[1745256951726,2.77248362,134.98,134.92,7.4104]
[1745256951921,7.46028555,134.97,134.94,0.04970275]
[1745256952126,0.05188555,134.97,134.94,0.04970275]
[1745256952327,7.4098,134.94,134.89,33.28]
[1745256952522,2.77264244,134.95,134.89,33.28]
[1745256952831,2.77264244,134.94,134.89,33.28]
[1745256953032,365.0,134.96,134.89,33.28]
[1745256953232,2.77248937,134.95,134.89,33.28]
[1745256953538,7.46286292,134.93,134.89,33.28]
[1745256954331,7.4112,134.92,134.89,33.28]
[1745256954631,7.4112,134.92,134.83,586.94]
[1745256954632,0.05226292,134.93,134.86,7.4139]
[1745256954831,2.77343193,134.92,134.86,7.4139]
[1745256955023,7.4126,134.89,134.86,7.4139]
[1745256955222,28.25469587,134.91,134.87,7.4136]
[1745256955431,35.66639587,134.91,134.87,7.4136]
[1745256955632,2.7749704,134.9,134.87,7.4136]
[1745256955830,7.46227869,134.91,134.87,7.4136]
[1745256956034,2.77534022,134.9,134.87,7.4136]
[1745256956233,7.46227869,134.91,134.87,7.4136]
[1745256956435,2.77648178,134.9,134.87,7.4136]
[1745256956728,0.05057869,134.91,134.86,7.4139]
[1745256956934,2.77645684,134.9,134.85,33.28]
[1745256957233,28.25469587,134.91,134.85,33.28]
[1745256957429,10.18854266,134.9,134.85,33.28]
[1745256957631,7.4123,134.9,134.85,33.28]
[1745256957929,28.25469587,134.91,134.85,33.28]
[1745256958229,2.77687049,134.9,134.85,33.28]
[1745256958432,7.4136,134.87,134.83,594.3555]
[1745256958823,0.05123237,134.86,134.83,586.94]
[1745256959033,0.05123237,134.86,134.83,594.3555]
[1745256959532,7.46543237,134.86,134.82,40.6961]
[1745256959735,0.05123237,134.86,134.82,33.28]
[1745256960033,2.77687251,134.85,134.8,7.417]
[1745256960233,28.20411718,134.88,134.79,33.28]
[1745256960434,0.04728077,134.84,134.79,33.28]
[1745256960634,0.04728077,134.84,134.8,7.4172]
[1745256960830,0.04728077,134.84,134.79,33.28]
[1745256961237,0.04728077,134.84,134.8,7.417]
[1745256961835,7.4164,134.82,134.79,33.28]
[1745256962433,7.416,134.83,134.79,40.6979]
[1745256962633,28.20411718,134.82,134.76,586.98]
[1745256962938,2.77425978,134.81,134.73,33.22]
[1745256963147,2.8204065,134.8,134.73,33.22]
[1745256963434,30.97679343,134.79,134.71,7.4221]
[1745256963626,35.98943426,134.78,134.71,7.4221]
[1745256963828,28.25630772,134.76,134.69,33.22]
[1745256964032,7.4208,134.74,134.69,40.6433]
[1745256964337,2.7679496,134.75,134.66,33.22]
[1745256964536,0.05046633,134.73,134.69,7.4231]
[1745256964736,0.05046633,134.73,134.66,33.22]
[1745256965140,7.47216633,134.73,134.66,33.22]
[1745256965341,28.25458351,134.73,134.66,33.22]
[1745256965843,35.67618351,134.73,134.68,7.424]
[1745256966039,28.25458351,134.73,134.66,33.22]
[1745256966343,0.05046633,134.73,134.66,33.22]
[1745256966942,0.05046633,134.73,134.68,7.4236]
[1745256967142,0.05046633,134.73,134.66,33.22]
[1745256967946,0.05046633,134.73,134.7,7.4229]
[1745256968149,0.05046633,134.73,134.66,33.22]
[1745256968344,0.05046633,134.73,134.68,28.20411718]
[1745256968544,2.1085,134.79,134.68,28.20411718]
[1745256968741,365.0,134.81,134.68,28.20411718]
[1745256969044,7.4157,134.84,134.78,7.4185]
[1745256969239,367.0903,134.86,134.76,33.24]
[1745256969436,365.0,134.86,134.82,7.416]
[1745256969840,0.05075499,134.85,134.8,33.28729995]
[1745256970945,0.05075499,134.85,134.82,7.4162]
[1745256971546,0.05075499,134.85,134.83,7.4157]
[1745256971746,0.05075499,134.85,134.8,33.28729995]
[1745256972746,0.05075499,134.85,134.82,7.416]
[1745256973847,0.05075499,134.85,134.83,7.4158]
[1745256974052,0.05075499,134.85,134.8,33.28729995]
[1745256974353,365.0,134.91,134.8,33.28729995]
[1745256974543,4.0536,134.93,134.82,45.83161598]
[1745256974745,367.1283,134.95,134.85,45.83161598]
[1745256975053,367.1283,134.95,134.86,33.24]
[1745256975348,374.5377,134.95,134.86,33.24]
[1745256975851,0.04729133,134.92,134.9,7.4119]
[1745256976153,0.04729133,134.92,134.89,0.05233915]
[1745256976451,0.04729133,134.92,134.9,7.4116]
[1745256977052,0.04729133,134.92,134.89,7.46463915]
[1745256977252,0.04729133,134.92,134.89,0.05233915]
[1745256978349,45.83161598,134.9,134.83,33.24]
[1745256978852,7.4134,134.88,134.83,40.6555]
[1745256979453,0.04734703,134.87,134.84,0.04711888]
[1745256980846,7.46094703,134.87,134.84,0.04711888]
[1745256981152,0.04734703,134.87,134.84,0.04711888]
[1745256981957,7.46124703,134.87,134.84,7.46231888]
[1745256982152,0.04734703,134.87,134.84,7.46231888]
[1745256982353,0.04734703,134.87,134.84,0.04711888]
[1745256983256,0.04734703,134.87,134.85,7.4147]
[1745256983459,0.04734703,134.87,134.84,0.04711888]
[1745256983756,371.1177,134.95,134.91,7.411]
[1745256983956,367.0466,134.95,134.91,7.411]
[1745256984359,365.0,134.95,134.92,7.4108]
[1745256984759,365.05463195,134.95,134.92,0.05499108]
[1745256984959,372.46393195,134.95,134.92,0.05499108]
[1745256985161,365.05463195,134.95,134.92,0.05499108]
[1745256985357,7.4102,134.94,134.92,0.05499108]
[1745256985557,365.05463195,134.95,134.92,0.05499108]
[1745256985964,7.4101,134.94,134.92,0.05499108]
[1745256986361,365.05463195,134.95,134.92,0.05499108]
[1745256986856,7.4098,134.94,134.92,0.05499108]
[1745256987057,365.05463195,134.95,134.92,0.05499108]
[1745256987564,372.46433195,134.95,134.92,0.05499108]
[1745256989065,7.4099,134.94,134.92,0.05499108]
[1745256989265,365.05463195,134.95,134.92,0.05499108]
[1745256990173,365.05463195,134.95,134.93,7.4103]
[1745256990364,0.05463195,134.95,134.92,0.05499108]
[1745256990766,0.05463195,134.95,134.92,7.46539108]
[1745256991072,0.05463195,134.95,134.92,0.05499108]
[1745256993274,0.05463195,134.95,134.93,7.41]
[1745256993473,0.05463195,134.95,134.92,0.05499108]
[1745256993770,0.05463195,134.95,134.93,7.4103]
[1745256994374,0.05463195,134.95,134.94,7.4098]
[1745256994865,61.33369208,135.04,134.93,4.0665]
[1745256995673,365.0,135.06,134.94,28.15369208]
[1745256995874,365.0,135.06,134.95,33.18]
[1745256996074,0.05054592,135.01,134.99,7.45388591]
[1745256996269,0.05054592,135.01,134.99,0.04718591]
[1745256996577,365.0,135.06,134.99,33.22718591]
[1745256996773,61.33369208,135.1,134.99,33.22718591]
[1745256997075,61.33369208,135.1,135.03,7.4045]
[1745256997376,61.33369208,135.1,135.0,4.0788]
[1745256997676,7.4021,135.08,135.01,33.18]
[1745256997866,61.33369208,135.1,135.04,0.05044891]
[1745256998064,0.05144003,135.06,135.04,0.05044891]
[1745256999673,7.4037,135.05,135.04,0.05044891]
[1745256999872,0.05144003,135.06,135.04,0.05044891]
[1745257003278,0.05144003,135.06,135.05,7.4037]
[1745257003677,0.05144003,135.06,135.04,7.45464891]
[1745257004873,0.05144003,135.06,135.04,0.05044891]
[1745257005567,0.05144003,135.06,135.04,7.45454891]
[1745257006072,0.05144003,135.06,135.05,7.4037]
[1745257006467,0.05144003,135.06,135.04,0.05044891]
[1745257007778,7.45474003,135.06,135.04,0.05044891]
[1745257008972,0.05144003,135.06,135.04,0.05044891]
[1745257009379,7.4037,135.05,135.04,0.05044891]
[1745257010580,9.53644003,135.06,135.04,0.05044891]
[1745257011983,2.13294003,135.06,135.04,0.05044891]
[1745257012274,0.05144003,135.06,135.04,0.05044891]
[1745257012481,0.05144003,135.06,135.05,7.4037]
[1745257013080,0.05144003,135.06,135.05,40.5637]
[1745257013682,2.1396,135.11,135.08,7.4019]
[1745257013879,365.0,135.12,135.05,61.31369208]
[1745257014179,365.0,135.12,135.05,63.38029208]
[1745257014480,365.0,135.12,135.05,35.2266]
[1745257014679,372.4001,135.12,135.08,7.4018]
[1745257014875,0.05336703,135.1,135.08,7.4018]
[1745257015478,0.05336703,135.1,135.07,7.45393629]
[1745257015679,0.05336703,135.1,135.07,0.05163629]
[1745257015879,2.19016703,135.1,135.02,33.16]
[1745257016079,365.0,135.09,135.02,33.16]
[1745257016485,7.4029,135.07,135.03,7.4047]
[1745257016685,365.0,135.09,135.02,33.16]
[1745257016889,28.15369208,135.08,135.01,586.4]
[1745257017185,28.15369208,135.08,134.98,2.1083]
[1745257017186,0.04756795,135.07,135.04,0.04771165]
[1745257017385,4.12656795,135.07,134.99,33.16]
[1745257017585,7.4044,135.04,135.0,7.4062]
[1745257017781,365.0,135.06,134.99,33.16]
[1745257017987,28.15369208,135.05,134.99,33.16]
[1745257018477,365.0,135.06,134.99,33.16]
[1745257018682,0.05242896,135.03,135.01,0.04937477]
[1745257019583,0.05242896,135.03,135.01,7.45527477]
[1745257020783,0.05242896,135.03,135.01,0.04937477]
[1745257021182,0.05242896,135.03,135.02,7.4054]
[1745257021389,365.0,135.06,135.01,0.04937477]
[1745257022184,365.0,135.06,135.04,7.404]
[1745257022686,365.04732727,135.06,135.04,7.404]
[1745257023487,0.04732727,135.06,135.04,7.404]
[1745257023688,0.04732727,135.06,135.05,7.4037]
[1745257023887,0.04732727,135.06,135.03,33.12]
[1745257024187,0.04732727,135.06,135.04,0.05525812]
[1745257024389,0.04732727,135.06,135.04,7.45925812]
[1745257024785,0.04732727,135.06,135.04,0.05525812]
[1745257025489,0.04732727,135.06,135.04,7.45925812]
[1745257028990,0.04732727,135.06,135.04,0.05525812]
[1745257030088,0.04732727,135.06,135.04,7.45915812]
[1745257031295,0.04732727,135.06,135.05,7.4037]
[1745257032499,0.04732727,135.06,135.04,7.45925812]
[1745257032997,0.04732727,135.06,135.05,7.4037]
[1745257033398,0.04732727,135.06,135.04,0.05525812]
[1745257033798,0.04732727,135.06,135.04,7.45915812]
[1745257034198,0.04732727,135.06,135.04,0.05525812]
[1745257035595,0.04732727,135.06,135.04,7.45905812]
[1745257035900,0.04732727,135.06,135.04,0.05525812]
[1745257036499,0.04732727,135.06,134.94,588.4283]
[1745257036500,2.79188083,135.05,134.94,588.4283]
[1745257036702,6.81598083,135.04,134.96,33.12]
[1745257036901,10.19718083,135.03,134.98,7.4071]
[1745257037199,2.79188083,135.02,134.96,33.12]
[1745257037399,2.79188083,135.01,134.96,33.12]
[1745257037602,2.79459072,135.0,134.96,33.12]
[1745257037799,0.04842226,135.0,134.98,0.05492615]
[1745257038098,0.04842226,135.0,134.98,7.46252615]
[1745257038598,0.04842226,135.0,134.98,0.05492615]
[1745257038798,2.79628217,134.99,134.88,28.15369208]
[1745257039003,2.79628217,134.98,134.89,33.12]
[1745257039300,2.79628217,134.97,134.89,33.12]
[1745257039499,2.79587434,134.96,134.89,33.12]
[1745257039692,7.4077,134.98,134.94,7.4094]
[1745257039891,2.79650779,134.97,134.93,33.12]
[1745257040091,2.79650779,134.96,134.95,0.05368694]
[1745257040302,0.05654382,134.97,134.95,7.46248694]
[1745257040600,0.05654382,134.97,134.95,0.05368694]
[1745257040803,2.79654737,134.96,134.95,0.05368694]
[1745257041105,2.79654737,134.96,134.9,33.12]
[1745257041292,2.79654737,134.95,134.92,7.4105]
[1745257041489,1.9829,134.97,134.9,33.12]
[1745257041694,2.7933389,134.96,134.9,33.12]
[1745257041894,2.7933389,134.95,134.93,7.4103]
[1745257042099,1.9829,134.97,134.93,7.4103]
[1745257042299,0.05030396,134.95,134.93,7.46279296]
[1745257043101,0.05030396,134.95,134.94,7.4098]
[1745257043404,0.05030396,134.95,134.94,40.5498]
[1745257043799,2.79191363,135.0,134.94,33.14]
[1745257044000,367.1017,135.02,134.94,33.14]
[1745257044199,2.79239242,135.01,134.96,7.4086]
[1745257044500,2.79239242,135.0,134.94,33.14]
[1745257044702,374.5073,135.02,134.94,33.14]
[1745257044902,0.05178691,134.98,134.97,7.4079]
[1745257045096,0.05178691,134.98,134.96,0.05000947]
[1745257045097,2.7904404,134.98,134.96,0.05000947]
[1745257045303,0.05677021,134.99,134.96,0.05000947]
[1745257045503,2.79003577,134.98,134.96,0.05000947]
[1745257045704,2.79003577,134.97,134.92,33.14]
[1745257046002,2.78904896,134.96,134.92,33.14]
[1745257046204,7.4089,134.96,134.89,33.14]
[1745257046405,2.78740426,134.95,134.89,33.14]
[1745257046698,7.4089,134.96,134.89,33.14]
[1745257046903,0.05284009,134.93,134.91,0.0473764]
[1745257048305,0.05284009,134.93,134.92,7.4109]
[1745257049407,0.05284009,134.93,134.91,7.4584764]
[1745257049909,0.05284009,134.93,134.92,7.4109]
[1745257050100,0.05284009,134.93,134.91,0.0473764]
[1745257050407,0.05284009,134.93,134.92,7.4109]
[1745257051008,1.9479,134.98,134.91,0.0473764]
[1745257051603,1.9479,134.98,134.95,7.4089]
[1745257052103,2.00059886,134.98,134.95,7.4556154]
[1745257052707,2.00059886,134.98,134.96,7.4087]
[1745257053507,0.05269886,134.98,134.97,7.4081]
[1745257054308,2.1448,135.02,134.97,33.1]
[1745257054508,365.0,135.04,134.97,33.1]
[1745257055010,6.1598,135.06,134.98,28.15369208]
[1745257055410,6.1598,135.06,135.02,7.4051]
[1745257055709,0.04857664,135.03,135.02,7.4051]
[1745257058410,0.04857664,135.03,135.01,40.55851336]
[1745257059115,0.04857664,135.03,135.02,7.4054]
[1745257060315,0.04857664,135.03,135.01,33.15271336]
[1745257060505,0.04857664,135.03,135.01,0.05271336]
[1745257061214,7.45367664,135.03,135.01,0.05271336]
[1745257061715,0.04857664,135.03,135.01,0.05271336]
[1745257062115,0.04857664,135.03,135.01,7.45851336]
[1745257062320,0.04857664,135.03,135.01,0.05271336]
[1745257062817,0.04857664,135.03,135.02,7.4054]
[1745257068520,0.04857664,135.03,135.02,40.5054]
[1745257070615,2.78509661,135.08,135.02,33.1]
[1745257070814,367.1341,135.09,135.02,33.1]
[1745257071317,367.1341,135.09,135.05,7.4032]
[1745257071618,367.1341,135.09,135.02,33.1]
[1745257071821,0.05659695,135.08,135.06,0.0539086]
[1745257072515,7.45909695,135.08,135.06,0.0539086]
[1745257073027,7.4026,135.07,135.02,33.1]
[1745257073215,0.05659695,135.08,135.02,33.1]
[1745257073619,0.05659695,135.08,135.05,7.4034]
[1745257073820,0.05659695,135.08,135.02,33.1]
[1745257074020,0.05659695,135.08,135.03,17.56356884]
[1745257074328,0.05659695,135.08,135.06,7.4028]
[1745257074518,0.05659695,135.08,135.04,0.05496509]
[1745257075627,0.05659695,135.08,135.06,7.4029]
[1745257078127,0.05659695,135.08,135.07,7.4026]
[1745257078824,0.05659695,135.08,135.04,0.05496509]
[1745257079427,0.05659695,135.08,135.07,7.4026]
[1745257080427,0.05659695,135.08,135.06,40.483]
[1745257080726,17.62016579,135.08,135.04,0.05496509]
[1745257081125,0.05659695,135.08,135.04,0.05496509]
[1745257081626,0.05659695,135.08,135.05,7.4035]
[1745257082226,0.05659695,135.08,135.04,0.05496509]
[1745257082727,7.45899695,135.08,135.04,7.45896509]
[1745257083028,0.05659695,135.08,135.04,0.05496509]
[1745257083323,0.05659695,135.08,135.06,7.4029]
[1745257083627,0.05659695,135.08,135.04,0.05496509]
[1745257083823,7.45899695,135.08,135.04,7.45906509]
[1745257084624,7.4028,135.07,135.04,0.05496509]
[1745257084928,17.62016579,135.08,135.04,0.05496509]
[1745257085121,10.18548634,135.07,135.04,0.05496509]
[1745257085324,11.3596,135.07,135.04,0.05496509]
[1745257085530,11.3596,135.07,135.04,7.45916509]
[1745257086027,3.9566,135.07,135.04,7.45916509]
[1745257086229,0.05659695,135.08,135.04,0.05496509]
[1745257087528,7.45919695,135.08,135.04,7.45896509]
[1745257087828,17.62016579,135.08,135.04,0.05496509]
[1745257088127,2.78607096,135.07,135.04,0.05496509]
[1745257088329,20.35024319,135.06,135.0,619.36]
[1745257088529,21.80466884,135.06,135.0,619.36]
[1745257088830,7.4052,135.03,135.0,33.04]
[1745257089220,4.2411,135.06,135.0,33.04]
[1745257089221,21.80466884,135.06,135.0,33.04]
[1745257089428,7.4043,135.04,135.01,7.4057]
[1745257089628,0.05349372,135.04,135.02,0.05084189]
[1745257090629,7.45799372,135.04,135.02,0.05084189]
[1745257091932,17.61706256,135.04,135.0,33.04]
[1745257092126,17.61706256,135.04,134.94,19.54206884]
[1745257092323,7.4062,135.01,134.98,7.4072]
[1745257092531,20.35227774,135.02,134.97,33.04]
[1745257092829,17.56356884,135.02,134.97,33.04]
[1745257093029,2.78837844,135.01,134.98,7.4076]
[1745257093229,0.04764499,135.01,134.98,7.45478746]
[1745257093432,7.45384499,135.01,134.98,7.45478746]
[1745257093629,0.04764499,135.01,134.98,0.04718746]
[1745257094032,0.04764499,135.01,134.99,7.4067]
[1745257094334,0.04764499,135.01,134.98,17.6107563]
[1745257094724,0.04764499,135.01,135.0,7.4065]
[1745257097130,0.04764499,135.01,134.98,17.6107563]
[1745257097335,0.04764499,135.01,134.98,0.04718746]
[1745257097727,2.79783745,135.0,134.98,0.04718746]
[1745257097935,7.45404499,135.01,134.98,0.04718746]
[1745257098133,2.79764992,135.0,134.98,0.04718746]
[1745257098334,2.79764992,134.99,134.98,0.04718746]
[1745257099836,0.04764499,135.01,134.98,0.04718746]
[1745257100233,2.79931703,135.0,134.98,7.45448746]
[1745257100434,0.04764499,135.01,134.98,7.45448746]
[1745257100435,0.04764499,135.01,134.98,0.04718746]
[1745257100936,2.79905257,135.0,134.98,0.04718746]
[1745257101136,0.04764499,135.01,134.98,0.04718746]
[1745257101338,0.04764499,135.01,135.0,7.4065]
[1745257101537,2.84652834,135.01,134.98,0.04718746]
[1745257101738,0.04764499,135.01,134.98,0.04718746]
[1745257102042,0.04764499,135.01,135.0,7.4065]
[1745257102336,2.84657696,135.01,135.0,7.4065]
[1745257102739,0.04764499,135.01,135.0,7.4065]
[1745257107740,365.0,135.05,135.03,7.4045]
[1745257107941,2.79863522,135.04,135.03,7.4045]
[1745257108335,369.0498,135.1,135.06,7.4029]
[1745257109043,0.05152428,135.09,135.07,0.05464794]
[1745257109240,0.05152428,135.09,135.08,7.4021]
[1745257109539,0.05152428,135.09,135.07,0.05464794]
[1745257111038,0.05152428,135.09,135.08,7.4021]
[1745257111240,397.08797141,135.16,135.07,0.05464794]
[1745257111536,371.0092,135.16,135.07,28.13727141]
[1745257112043,371.0092,135.16,135.12,7.3994]
[1745257112238,371.0092,135.16,135.11,33.04]
[1745257112442,0.05404113,135.15,135.13,0.05293986]
[1745257112645,0.05404113,135.15,135.14,7.3984]
[1745257113138,1.9722,135.19,135.16,7.3974]
[1745257113740,1.9722,135.19,135.17,7.397]
[1745257113940,374.4537,135.21,135.15,33.04]
[1745257114242,367.0585,135.21,135.15,33.04]
[1745257114542,0.05314246,135.19,135.17,0.05100411]
[1745257115643,0.05314246,135.19,135.17,7.44780411]
[1745257116137,0.05314246,135.19,135.17,0.05100411]
[1745257117246,0.05314246,135.19,135.17,7.44800411]
[1745257117547,0.05314246,135.19,135.17,0.05100411]
[1745257118541,0.05314246,135.19,135.15,33.04]
[1745257118939,7.397,135.18,135.13,7.3993]
[1745257119545,7.3964,135.19,135.12,50.5253176]
[1745257119740,0.05545754,135.17,135.14,0.05388074]
[1745257120244,0.05545754,135.17,135.16,7.3977]
[1745257120445,0.05545754,135.17,135.16,40.3777]
[1745257120651,0.05545754,135.17,135.16,32.98]
[1745257121343,0.05545754,135.17,135.14,7.45248074]
[1745257121543,0.05545754,135.17,135.14,0.05388074]
[1745257121741,7.45285754,135.17,135.14,0.05388074]
[1745257122042,0.05545754,135.17,135.14,0.05388074]
[1745257122445,0.05545754,135.17,135.14,7.45228074]
[1745257123046,0.05545754,135.17,135.15,7.3981]
[1745257123740,0.05545754,135.17,135.14,7.45248074]
[1745257123946,0.05545754,135.17,135.14,0.05388074]
[1745257124253,17.5453176,135.16,135.1,32.98]
[1745257124547,4.13495754,135.17,135.1,50.5253176]
[1745257125344,11.53235754,135.17,135.13,7.3991]
[1745257126044,7.3977,135.16,135.13,7.3991]
[1745257126245,4.13495754,135.17,135.12,7.45231696]
[1745257126444,7.3985,135.15,135.12,0.05251696]
[1745257126645,4.13495754,135.17,135.12,0.05251696]
[1745257126846,4.13495754,135.17,135.13,7.399]
[1745257127250,7.3979,135.16,135.13,7.399]
[1745257129644,17.5453176,135.16,135.12,0.05251696]
[1745257130253,7.3997,135.13,135.1,40.3807]
[1745257130440,17.5453176,135.16,135.1,32.98]
[1745257130850,7.3997,135.13,135.1,40.3807]
[1745257131347,7.3997,135.13,135.1,40.42369605]
[1745257131552,7.3999,135.12,135.1,0.04299605]
[1745257132052,0.04887515,135.13,135.1,0.04299605]
[1745257132547,7.4002,135.12,135.1,0.04299605]
[1745257132852,365.04887515,135.13,135.07,32.98]
[1745257133151,365.04887515,135.13,135.07,40.3826]
[1745257133653,7.4013,135.1,135.07,40.3826]
[1745257133952,17.5453176,135.12,135.07,32.98]
[1745257134153,7.45384308,135.1,135.07,32.98]
[1745257134355,7.45384308,135.1,135.07,40.3823]
[1745257134853,0.05264308,135.1,135.08,7.402]
[1745257135053,0.05264308,135.1,135.07,32.98]
[1745257135349,0.05264308,135.1,135.09,7.4015]
[1745257136251,0.05264308,135.1,135.08,7.4018]
[1745257137056,7.45364308,135.1,135.08,7.4018]
[1745257137256,0.05264308,135.1,135.07,32.98]
[1745257137555,7.4019,135.09,135.07,32.98]
[1745257138157,7.45384308,135.1,135.07,32.98]
[1745257138453,7.45384308,135.1,135.07,40.3825]
[1745257138755,7.4016,135.09,135.07,32.98]
[1745257139157,0.05264308,135.1,135.07,32.98]
[1745257139553,7.45394308,135.1,135.07,32.98]
[1745257139754,0.05264308,135.1,135.07,32.98]
[1745257140261,0.05264308,135.1,135.04,32.98]
[1745257140555,384.55196068,135.1,135.04,40.3837]
[1745257140757,384.55196068,135.1,135.04,32.98]
[1745257140955,367.00664308,135.1,135.04,50.5253176]
[1745257141456,374.40794308,135.1,135.06,7.4027]
[1745257141958,374.40794308,135.1,135.04,50.5253176]
[1745257143059,374.40794308,135.1,135.06,7.4029]
[1745257143460,7.4015,135.09,135.05,7.4035]
[1745257143758,367.00664308,135.1,135.04,32.98]
[1745257144060,7.4035,135.06,135.04,32.98]
[1745257144457,7.45417948,135.06,135.04,32.98]
[1745257144760,7.4037,135.05,135.04,32.98]
[1745257145452,0.05067948,135.06,135.01,32.94]
[1745257145453,7.4053,135.03,135.01,32.94]
[1745257145655,7.4053,135.03,134.99,32.94]
[1745257145856,0.05032684,135.03,134.99,32.94]
[1745257146159,0.05032684,135.03,135.0,7.4061]
[1745257146359,0.05032684,135.03,134.99,32.94]
[1745257148162,0.05032684,135.03,135.0,17.5453176]
[1745257148556,0.05032684,135.03,135.02,7.4054]
[1745257150362,0.05032684,135.03,134.99,32.94]
[1745257151365,7.45542684,135.03,134.99,32.94]
[1745257151867,0.05032684,135.03,134.99,32.94]
[1745257152867,0.05032684,135.03,135.0,7.4064]
[1745257153466,0.05032684,135.03,134.99,32.94]
[1745257153658,0.05032684,135.03,134.95,603.6653176]
[1745257153862,17.5453176,135.02,134.97,32.94]
[1745257154058,17.5453176,135.02,134.97,40.3479]
[1745257154364,7.4062,135.01,134.97,32.94]
[1745257155269,7.4062,135.01,134.98,7.4075]
[1745257155569,17.5453176,135.02,134.95,586.12]
[1745257155862,7.4069,135.0,134.97,7.4078]
[1745257156166,7.45700646,135.0,134.97,7.4078]
[1745257157867,0.05010646,135.0,134.95,586.12]
[1745257158364,7.45670646,135.0,134.95,586.12]
[1745257158563,0.05010646,135.0,134.96,7.4083]
[1745257158865,7.4073,134.99,134.96,7.4083]
[1745257159663,365.0,134.99,134.87,587.72955755]
[1745257159868,3.978,135.03,134.87,587.72955755]
[1745257159869,382.5453176,134.98,134.88,36.9804]
[1745257160068,0.05438522,134.94,134.89,17.5453176]
[1745257160265,0.05438522,134.94,134.92,7.4108]
[1745257160466,0.05438522,134.94,134.88,36.9804]
[1745257160769,0.05438522,134.94,134.91,7.4112]
[1745257161766,0.05438522,134.94,134.92,7.4108]
[1745257162570,0.05438522,134.94,134.93,7.4103]
[1745257162770,0.05438522,134.94,134.89,17.5453176]
[1745257163169,0.05438522,134.94,134.92,7.4106]
[1745257163370,0.05438522,134.94,134.89,17.5453176]
[1745257163770,0.05438522,134.94,134.91,7.4111]
[1745257164069,0.05438522,134.94,134.89,17.5453176]
[1745257164574,0.05438522,134.94,134.92,7.4106]
[1745257164867,0.05438522,134.94,134.89,17.5453176]
[1745257165068,0.05438522,134.94,134.88,36.9804]
[1745257165268,0.05438522,134.94,134.88,32.96]
[1745257165668,7.4109,134.92,134.89,7.4124]
[1745257165974,7.4109,134.92,134.88,32.96]
[1745257166776,7.4106,134.93,134.88,32.96]
[1745257167076,0.05438522,134.94,134.88,32.96]
[1745257167278,7.46438522,134.94,134.9,7.4116]
[1745257167776,0.05438522,134.94,134.88,32.96]
[1745257167970,0.05438522,134.94,134.91,7.4111]
[1745257168777,7.46428522,134.94,134.91,7.4111]
[1745257169078,17.59970282,134.94,134.88,32.96]
[1745257169476,7.4115,134.91,134.88,32.96]
[1745257169673,365.0,134.93,134.88,32.96]
[1745257169877,7.46137012,134.91,134.88,32.96]
[1745257170177,0.04937012,134.91,134.87,7.4133]
[1745257170371,0.04937012,134.91,134.85,32.96]
[1745257170679,0.04937012,134.91,134.87,7.4136]
[1745257170879,7.4123,134.9,134.87,7.4136]
[1745257171378,0.04937012,134.91,134.87,7.4136]
[1745257171574,0.04937012,134.91,134.86,7.4139]
[1745257171776,0.04937012,134.91,134.85,32.96]
[1745257171972,17.5453176,134.9,134.85,32.96]
[1745257172177,7.4138,134.87,134.85,32.96]
[1745257172377,382.5453176,134.9,134.82,32.98]
[1745257172677,7.46692843,134.87,134.84,7.4148]
[1745257172877,7.46692843,134.87,134.82,32.98]
[1745257173581,7.46692843,134.87,134.84,7.415]
[1745257175284,7.46692843,134.87,134.82,32.98]
[1745257175785,7.46692843,134.87,134.83,7.4155]
[1745257176681,7.4142,134.86,134.83,7.4155]
[1745257176886,0.05302843,134.87,134.83,17.5453176]
[1745257177281,0.05302843,134.87,134.85,7.4143]
[1745257177986,365.0,134.94,134.86,32.92]
[1745257178283,365.0,134.94,134.87,17.5453176]
[1745257178483,365.0,134.94,134.89,7.4123]